[Event "Titled Tuesday Blitz April 26 Early 2022"]
[White "Deac, Bogdan-Daniel"]
[Black "Safarli, Eltaj"]
[WhiteFideId "1226380"]
[BlackFideId "13402129"]
[WhiteElo "2648"]
[BlackElo "2634"]
[Result "1/2-1/2"]
[Round "08"]
[TimeControl "180+1"]
[Date "2022.04.26"]
[WhiteClock "0:00:02"]
[BlackClock "0:00:02"]

1. d4 {[%clk 0:03:00]}  Nf6 {[%clk 0:02:59]} 2. c4 {[%clk 0:03:01]}  e6 {[%clk 0:03:00]} 3. Nf3 {[%clk 0:03:01]}  d5 {[%clk 0:03:00]} 4. g3 {[%clk 0:03:02]}  Be7 {[%clk 0:03:00]} 5. Bg2 {[%clk 0:03:02]}  O-O {[%clk 0:03:00]} 6. O-O {[%clk 0:03:02]}  dxc4 {[%clk 0:03:01]} 7. Qc2 {[%clk 0:03:01]}  a6 {[%clk 0:03:01]} 8. a4 {[%clk 0:03:01]}  Nc6 {[%clk 0:03:01]} 9. Qxc4 {[%clk 0:02:58]}  Na5 {[%clk 0:03:01]} 10. Qc2 {[%clk 0:02:58]}  b6 {[%clk 0:03:02]} 11. Ne5 {[%clk 0:02:57]}  Bb7 {[%clk 0:03:02]} 12. Bxb7 {[%clk 0:02:56]}  Nxb7 {[%clk 0:03:03]} 13. Nc6 {[%clk 0:02:54]}  Qe8 {[%clk 0:03:04]} 14. Rd1 {[%clk 0:02:43]}  Bc5 {[%clk 0:03:03]} 15. Ne5 {[%clk 0:02:43]}  Bd6 {[%clk 0:03:03]} 16. Nc3 {[%clk 0:02:37]}  Nd5 {[%clk 0:02:58]} 17. Nc4 {[%clk 0:02:29]}  Qc6 {[%clk 0:02:51]} 18. Qb3 {[%clk 0:02:20]}  Nxc3 {[%clk 0:02:41]} 19. Qxc3 {[%clk 0:01:22]}  b5 {[%clk 0:02:40]} 20. Ne3 {[%clk 0:01:21]}  Qxc3 {[%clk 0:02:35]} 21. bxc3 {[%clk 0:01:22]}  Na5 {[%clk 0:02:22]} 22. Ba3 {[%clk 0:01:05]}  Rfb8 {[%clk 0:01:51]} 23. axb5 {[%clk 0:00:44]}  axb5 {[%clk 0:01:50]} 24. Rdb1 {[%clk 0:00:40]}  Nb7 {[%clk 0:01:34]} 25. Bb4 {[%clk 0:00:30]}  Rxa1 {[%clk 0:01:27]} 26. Rxa1 {[%clk 0:00:30]}  c5 {[%clk 0:01:27]} 27. dxc5 {[%clk 0:00:29]}  Bxc5 {[%clk 0:01:28]} 28. Ra6 {[%clk 0:00:23]}  Rc8 {[%clk 0:01:13]} 29. Kg2 {[%clk 0:00:10]}  h6 {[%clk 0:01:11]} 30. Kf3 {[%clk 0:00:09]}  Rc7 {[%clk 0:00:34]} 31. h4 {[%clk 0:00:08]}  h5 {[%clk 0:00:32]} 32. Ke4 {[%clk 0:00:06]}  Kh7 {[%clk 0:00:30]} 33. Kd3 {[%clk 0:00:06]}  Rd7+ {[%clk 0:00:28]} 34. Kc2 {[%clk 0:00:04]}  Rc7 {[%clk 0:00:12]} 35. Kd3 {[%clk 0:00:04]}  Rd7+ {[%clk 0:00:12]} 36. Ke4 {[%clk 0:00:05]}  Rd2 {[%clk 0:00:07]} 37. Kf3 {[%clk 0:00:04]}  Bxb4 {[%clk 0:00:06]} 38. cxb4 {[%clk 0:00:04]}  Nd6 {[%clk 0:00:07]} 39. Rb6 {[%clk 0:00:03]}  e5 {[%clk 0:00:06]} 40. g4 {[%clk 0:00:03]}  hxg4+ {[%clk 0:00:05]} 41. Nxg4 {[%clk 0:00:04]}  f6 {[%clk 0:00:05]} 42. Ne3 {[%clk 0:00:03]}  Kg6 {[%clk 0:00:04]} 43. Kg4 {[%clk 0:00:03]}  Rd4+ {[%clk 0:00:04]} 44. Kf3 {[%clk 0:00:02]}  Rd2 {[%clk 0:00:02]} 45. Kg4 {[%clk 0:00:02]}  Rd4+ {[%clk 0:00:02]} 46. Kf3 {[%clk 0:00:02]}  Rd2 {[%clk 0:00:02]} 1/2-1/2


[Site "https://www.chess.com"]

[Event "Titled Tuesday Blitz April 26 Early 2022"]
[White "Donchenko, Alexander"]
[Black "Bortnyk, Olexandr"]
[WhiteFideId "24603295"]
[BlackFideId "14120828"]
[WhiteElo "2539"]
[BlackElo "2723"]
[Result "0-1"]
[Round "08"]
[TimeControl "180+1"]
[Date "2022.04.26"]
[WhiteClock "0:00:02"]
[BlackClock "0:00:04"]

1. d4 {[%clk 0:03:00]}  d6 {[%clk 0:02:59]} 2. Nf3 {[%clk 0:03:00]}  Nf6 {[%clk 0:02:59]} 3. g3 {[%clk 0:03:00]}  g6 {[%clk 0:02:59]} 4. Bg2 {[%clk 0:03:00]}  Bg7 {[%clk 0:03:00]} 5. O-O {[%clk 0:03:01]}  O-O {[%clk 0:03:01]} 6. b3 {[%clk 0:03:02]}  Bf5 {[%clk 0:02:54]} 7. Bb2 {[%clk 0:03:01]}  c6 {[%clk 0:02:48]} 8. Nbd2 {[%clk 0:03:00]}  d5 {[%clk 0:02:46]} 9. c4 {[%clk 0:02:58]}  Ne4 {[%clk 0:02:38]} 10. Re1 {[%clk 0:02:52]}  Nxd2 {[%clk 0:02:36]} 11. Qxd2 {[%clk 0:02:51]}  a5 {[%clk 0:02:37]} 12. Ne5 {[%clk 0:02:41]}  a4 {[%clk 0:02:29]} 13. Red1 {[%clk 0:02:23]}  Be6 {[%clk 0:02:15]} 14. cxd5 {[%clk 0:02:20]}  cxd5 {[%clk 0:01:44]} 15. Rdc1 {[%clk 0:02:18]}  Qb6 {[%clk 0:01:38]} 16. Ba3 {[%clk 0:02:11]}  axb3 {[%clk 0:01:29]} 17. axb3 {[%clk 0:02:12]}  Nc6 {[%clk 0:01:15]} 18. Nxc6 {[%clk 0:01:30]}  bxc6 {[%clk 0:01:16]} 19. Bxe7 {[%clk 0:01:30]}  Rxa1 {[%clk 0:00:55]} 20. Rxa1 {[%clk 0:01:31]}  Bxd4 {[%clk 0:00:52]} 21. Rf1 {[%clk 0:01:09]}  Re8 {[%clk 0:00:46]} 22. Bg5 {[%clk 0:01:04]}  h5 {[%clk 0:00:36]} 23. e3 {[%clk 0:01:03]}  Bg7 {[%clk 0:00:35]} 24. Rc1 {[%clk 0:01:01]}  Ra8 {[%clk 0:00:31]} 25. b4 {[%clk 0:00:39]}  Ra3 {[%clk 0:00:11]} 26. Be7 {[%clk 0:00:36]}  Rb3 {[%clk 0:00:11]} 27. h4 {[%clk 0:00:34]}  Rb2 {[%clk 0:00:11]} 28. Rc2 {[%clk 0:00:33]}  Rb3 {[%clk 0:00:09]} 29. Qc1 {[%clk 0:00:28]}  Qb7 {[%clk 0:00:08]} 30. Rxc6 {[%clk 0:00:24]}  Qxe7 {[%clk 0:00:07]} 31. Ra6 {[%clk 0:00:15]}  Qxb4 {[%clk 0:00:07]} 32. Ra8+ {[%clk 0:00:15]}  Kh7 {[%clk 0:00:07]} 33. Kh2 {[%clk 0:00:07]}  Rb1 {[%clk 0:00:07]} 34. Qc2 {[%clk 0:00:02]}  Qe1 {[%clk 0:00:07]} 35. g4 {[%clk 0:00:02]}  Be5+ {[%clk 0:00:05]} 36. f4 {[%clk 0:00:02]}  Qg1+ {[%clk 0:00:05]} 37. Kg3 {[%clk 0:00:02]}  Qxe3+ {[%clk 0:00:04]} 0-1


[Site "https://www.chess.com"]

[Event "Titled Tuesday Blitz April 26 Early 2022"]
[White "Estrada Nieto, Julian"]
[Black "Clawitter, Craig"]
[WhiteFideId "5101018"]
[BlackFideId "2023105"]
[WhiteElo "2252"]
[BlackElo "2246"]
[Result "1-0"]
[Round "08"]
[TimeControl "180+1"]
[Date "2022.04.26"]
[WhiteClock "0:00:47"]
[BlackClock "0:00:07"]

1. e4 {[%clk 0:02:46]}  e6 {[%clk 0:02:59]} 2. d4 {[%clk 0:02:46]}  d5 {[%clk 0:03:00]} 3. Nd2 {[%clk 0:02:46]}  Be7 {[%clk 0:03:00]} 4. Bd3 {[%clk 0:02:44]}  c5 {[%clk 0:02:59]} 5. exd5 {[%clk 0:02:43]}  exd5 {[%clk 0:02:59]} 6. dxc5 {[%clk 0:02:43]}  Nf6 {[%clk 0:02:59]} 7. Ngf3 {[%clk 0:02:44]}  O-O {[%clk 0:02:59]} 8. Nb3 {[%clk 0:02:44]}  a5 {[%clk 0:02:59]} 9. a4 {[%clk 0:02:44]}  Na6 {[%clk 0:02:58]} 10. Be3 {[%clk 0:02:44]}  Ne4 {[%clk 0:02:52]} 11. O-O {[%clk 0:02:34]}  Naxc5 {[%clk 0:02:46]} 12. Nxc5 {[%clk 0:02:34]}  Nxc5 {[%clk 0:02:35]} 13. h3 {[%clk 0:02:34]}  Nxd3 {[%clk 0:02:22]} 14. Qxd3 {[%clk 0:02:33]}  Bf6 {[%clk 0:02:23]} 15. Bd4 {[%clk 0:02:31]}  Be6 {[%clk 0:02:14]} 16. Rfe1 {[%clk 0:02:31]}  Rc8 {[%clk 0:02:11]} 17. c3 {[%clk 0:02:31]}  Rc4 {[%clk 0:02:02]} 18. Re2 {[%clk 0:02:10]}  Qd7 {[%clk 0:01:49]} 19. Bxf6 {[%clk 0:02:02]}  gxf6 {[%clk 0:01:49]} 20. Nd4 {[%clk 0:01:43]}  Rxa4 {[%clk 0:01:28]} 21. Rae1 {[%clk 0:01:43]}  Re8 {[%clk 0:00:37]} 22. Qg3+ {[%clk 0:01:39]}  Kh8 {[%clk 0:00:35]} 23. Qh4 {[%clk 0:01:24]}  Qd8 {[%clk 0:00:24]} 24. Qh6 {[%clk 0:01:21]}  Rg8 {[%clk 0:00:14]} 25. Nxe6 {[%clk 0:01:08]}  fxe6 {[%clk 0:00:14]} 26. Rxe6 {[%clk 0:01:08]}  Re4 {[%clk 0:00:13]} 27. R6xe4 {[%clk 0:01:04]}  dxe4 {[%clk 0:00:14]} 28. Rxe4 {[%clk 0:01:01]}  Qd1+ {[%clk 0:00:13]} 29. Kh2 {[%clk 0:01:00]}  Qd6+ {[%clk 0:00:12]} 30. Qf4 {[%clk 0:00:59]}  Qxf4+ {[%clk 0:00:12]} 31. Rxf4 {[%clk 0:00:59]}  Kg7 {[%clk 0:00:12]} 32. Rf5 {[%clk 0:00:59]}  Kf7 {[%clk 0:00:12]} 33. Rxa5 {[%clk 0:00:58]}  Re8 {[%clk 0:00:12]} 34. Rb5 {[%clk 0:00:59]}  Re7 {[%clk 0:00:11]} 35. Kg3 {[%clk 0:00:58]}  Kg6 {[%clk 0:00:12]} 36. Kf3 {[%clk 0:00:57]}  Rd7 {[%clk 0:00:10]} 37. g4 {[%clk 0:00:53]}  h6 {[%clk 0:00:10]} 38. h4 {[%clk 0:00:52]}  Re7 {[%clk 0:00:09]} 39. h5+ {[%clk 0:00:52]}  Kg7 {[%clk 0:00:09]} 40. Rb6 {[%clk 0:00:51]}  Rd7 {[%clk 0:00:09]} 41. Kf4 {[%clk 0:00:49]}  Kf8 {[%clk 0:00:07]} 42. Rxf6+ {[%clk 0:00:47]} 1-0


[Site "https://www.chess.com"]

[Event "Titled Tuesday Blitz April 26 Early 2022"]
[White "Gokerkan, Cem Kaan"]
[Black "Drygalov, Sergey"]
[WhiteFideId "6336760"]
[BlackFideId "24171743"]
[WhiteElo "2382"]
[BlackElo "2514"]
[Result "0-1"]
[Round "08"]
[TimeControl "180+1"]
[Date "2022.04.26"]
[WhiteClock "0:00:19"]
[BlackClock "0:00:36"]

1. e4 {[%clk 0:03:00]}  c5 {[%clk 0:02:59]} 2. Nf3 {[%clk 0:03:01]}  d6 {[%clk 0:02:59]} 3. d4 {[%clk 0:03:01]}  cxd4 {[%clk 0:03:00]} 4. Nxd4 {[%clk 0:03:02]}  Nf6 {[%clk 0:03:00]} 5. Nc3 {[%clk 0:03:03]}  a6 {[%clk 0:03:00]} 6. Bg5 {[%clk 0:03:03]}  e6 {[%clk 0:03:00]} 7. f4 {[%clk 0:03:03]}  Nbd7 {[%clk 0:03:01]} 8. Qe2 {[%clk 0:03:02]}  Be7 {[%clk 0:02:58]} 9. O-O-O {[%clk 0:03:01]}  Qc7 {[%clk 0:02:52]} 10. g4 {[%clk 0:02:53]}  b5 {[%clk 0:02:49]} 11. a3 {[%clk 0:02:53]}  h6 {[%clk 0:02:44]} 12. Bxf6 {[%clk 0:02:46]}  Bxf6 {[%clk 0:02:44]} 13. Bg2 {[%clk 0:02:40]}  Rb8 {[%clk 0:02:42]} 14. Rd2 {[%clk 0:01:31]}  b4 {[%clk 0:02:24]} 15. axb4 {[%clk 0:01:30]}  Rxb4 {[%clk 0:02:25]} 16. Rhd1 {[%clk 0:01:31]}  O-O {[%clk 0:02:24]} 17. h4 {[%clk 0:01:28]}  Qb6 {[%clk 0:02:13]} 18. Nb3 {[%clk 0:01:23]}  Nc5 {[%clk 0:01:56]} 19. Rxd6 {[%clk 0:01:16]}  Nxb3+ {[%clk 0:01:56]} 20. cxb3 {[%clk 0:01:17]}  Qa5 {[%clk 0:01:57]} 21. e5 {[%clk 0:01:16]}  Be7 {[%clk 0:01:54]} 22. R6d4 {[%clk 0:01:09]}  Rxb3 {[%clk 0:01:53]} 23. Qc2 {[%clk 0:00:55]}  Rb8 {[%clk 0:01:36]} 24. g5 {[%clk 0:00:55]}  h5 {[%clk 0:01:36]} 25. g6 {[%clk 0:00:52]}  fxg6 {[%clk 0:01:32]} 26. R1d2 {[%clk 0:00:48]}  Bc5 {[%clk 0:01:10]} 27. Ra4 {[%clk 0:00:32]}  Qb6 {[%clk 0:01:08]} 28. Kb1 {[%clk 0:00:32]}  Bb4 {[%clk 0:01:02]} 29. Qxg6 {[%clk 0:00:22]}  Bb7 {[%clk 0:00:51]} 30. Rd7 {[%clk 0:00:20]}  Be7 {[%clk 0:00:36]} 31. Rxe7 {[%clk 0:00:19]}  Be4+ {[%clk 0:00:36]} 0-1


[Site "https://www.chess.com"]

[Event "Titled Tuesday Blitz April 26 Early 2022"]
[White "Grandelius, Nils"]
[Black "Bilych, Olexiy"]
[WhiteFideId "1710400"]
[BlackFideId "14156504"]
[WhiteElo "2617"]
[BlackElo "2176"]
[Result "1-0"]
[Round "08"]
[TimeControl "180+1"]
[Date "2022.04.26"]
[WhiteClock "0:01:27"]
[BlackClock "0:00:56"]

1. Nf3 {[%clk 0:03:00]}  d5 {[%clk 0:02:56]} 2. g3 {[%clk 0:03:00]}  g6 {[%clk 0:02:56]} 3. c4 {[%clk 0:03:00]}  dxc4 {[%clk 0:02:55]} 4. Na3 {[%clk 0:03:00]}  Bg7 {[%clk 0:02:55]} 5. Nxc4 {[%clk 0:03:01]}  c5 {[%clk 0:02:49]} 6. Bg2 {[%clk 0:02:58]}  Nc6 {[%clk 0:02:49]} 7. d3 {[%clk 0:02:53]}  Nh6 {[%clk 0:02:31]} 8. h4 {[%clk 0:02:44]}  O-O {[%clk 0:02:18]} 9. h5 {[%clk 0:02:44]}  Ng4 {[%clk 0:02:07]} 10. Bd2 {[%clk 0:02:40]}  Be6 {[%clk 0:01:35]} 11. hxg6 {[%clk 0:02:32]}  hxg6 {[%clk 0:01:35]} 12. Rc1 {[%clk 0:02:24]}  Rc8 {[%clk 0:01:26]} 13. Ng5 {[%clk 0:02:15]}  Bd5 {[%clk 0:01:20]} 14. Kf1 {[%clk 0:01:40]}  Bxg2+ {[%clk 0:01:03]} 15. Kxg2 {[%clk 0:01:41]}  Qd5+ {[%clk 0:01:00]} 16. e4 {[%clk 0:01:28]}  Qd7 {[%clk 0:01:00]} 17. Rh4 {[%clk 0:01:28]}  Nge5 {[%clk 0:00:56]} 18. Qh1 {[%clk 0:01:27]} 1-0


[Site "https://www.chess.com"]

[Event "Titled Tuesday Blitz April 26 Early 2022"]
[White "Halvax, Georg"]
[Black "Demin, Vladimir"]
[WhiteFideId "1619543"]
[BlackFideId "4167457"]
[WhiteElo "2403"]
[BlackElo "2410"]
[Result "0-1"]
[Round "08"]
[TimeControl "180+1"]
[Date "2022.04.26"]
[WhiteClock "0:00:09"]
[BlackClock "0:00:34"]

1. d4 {[%clk 0:00:23]}  Nf6 {[%clk 0:02:57]} 2. c4 {[%clk 0:00:23]}  e5 {[%clk 0:02:58]} 3. dxe5 {[%clk 0:00:23]}  Ng4 {[%clk 0:02:58]} 4. Bf4 {[%clk 0:00:24]}  Bb4+ {[%clk 0:02:58]} 5. Nc3 {[%clk 0:00:23]}  Nc6 {[%clk 0:02:57]} 6. Nf3 {[%clk 0:00:23]}  Bxc3+ {[%clk 0:02:57]} 7. bxc3 {[%clk 0:00:24]}  Qe7 {[%clk 0:02:58]} 8. Qd5 {[%clk 0:00:24]}  f6 {[%clk 0:02:58]} 9. exf6 {[%clk 0:00:24]}  Nxf6 {[%clk 0:02:59]} 10. Qd3 {[%clk 0:00:25]}  d6 {[%clk 0:02:57]} 11. e3 {[%clk 0:00:25]}  O-O {[%clk 0:02:57]} 12. Be2 {[%clk 0:00:25]}  Ne4 {[%clk 0:02:56]} 13. O-O {[%clk 0:00:24]}  Bf5 {[%clk 0:02:56]} 14. Nd4 {[%clk 0:00:20]}  Bg6 {[%clk 0:02:46]} 15. Nxc6 {[%clk 0:00:20]}  bxc6 {[%clk 0:02:47]} 16. Qd4 {[%clk 0:00:21]}  c5 {[%clk 0:02:41]} 17. Qd5+ {[%clk 0:00:18]}  Kh8 {[%clk 0:02:40]} 18. Rac1 {[%clk 0:00:19]}  Rab8 {[%clk 0:02:35]} 19. Bf3 {[%clk 0:00:19]}  Rb2 {[%clk 0:02:30]} 20. a4 {[%clk 0:00:16]}  Nd2 {[%clk 0:02:17]} 21. Rfd1 {[%clk 0:00:16]}  Bf7 {[%clk 0:02:13]} 22. Qc6 {[%clk 0:00:12]}  Bxc4 {[%clk 0:02:06]} 23. Bd5 {[%clk 0:00:07]}  Be2 {[%clk 0:01:30]} 24. Re1 {[%clk 0:00:07]}  Bd3 {[%clk 0:01:14]} 25. Red1 {[%clk 0:00:07]}  h6 {[%clk 0:01:05]} 26. c4 {[%clk 0:00:07]}  Be2 {[%clk 0:01:00]} 27. Re1 {[%clk 0:00:08]}  Nb3 {[%clk 0:00:59]} 28. Qb7 {[%clk 0:00:06]}  Qf6 {[%clk 0:00:47]} 29. Rb1 {[%clk 0:00:06]}  Rxb1 {[%clk 0:00:42]} 30. Rxb1 {[%clk 0:00:07]}  Nd2 {[%clk 0:00:43]} 31. Re1 {[%clk 0:00:08]}  Bxc4 {[%clk 0:00:42]} 32. Bxc4 {[%clk 0:00:08]}  Nxc4 {[%clk 0:00:43]} 33. Qxc7 {[%clk 0:00:09]}  h5 {[%clk 0:00:38]} 34. Bg3 {[%clk 0:00:09]}  h4 {[%clk 0:00:38]} 35. Bf4 {[%clk 0:00:10]}  g5 {[%clk 0:00:36]} 36. Bxg5 {[%clk 0:00:09]}  Qxg5 {[%clk 0:00:36]} 37. Qc6 {[%clk 0:00:09]}  Qf6 {[%clk 0:00:35]} 38. Qe4 {[%clk 0:00:09]}  Qxf2+ {[%clk 0:00:34]} 0-1


[Site "https://www.chess.com"]

[Event "Titled Tuesday Blitz April 26 Early 2022"]
[White "Harshavardhan G B"]
[Black "Kozak, Antoni"]
[WhiteFideId "25059009"]
[BlackFideId "21832030"]
[WhiteElo "1831"]
[BlackElo "2236"]
[Result "1-0"]
[Round "08"]
[TimeControl "180+1"]
[Date "2022.04.26"]
[WhiteClock "0:00:02"]
[BlackClock "0:00:02"]

1. d4 {[%clk 0:02:52]}  d5 {[%clk 0:02:59]} 2. c4 {[%clk 0:02:49]}  e6 {[%clk 0:02:59]} 3. Nf3 {[%clk 0:02:48]}  Nf6 {[%clk 0:02:59]} 4. g3 {[%clk 0:02:48]}  dxc4 {[%clk 0:02:58]} 5. Bg2 {[%clk 0:02:48]}  Bb4+ {[%clk 0:02:59]} 6. Bd2 {[%clk 0:02:47]}  a5 {[%clk 0:02:59]} 7. Qc2 {[%clk 0:02:44]}  Bxd2+ {[%clk 0:02:59]} 8. Qxd2 {[%clk 0:02:45]}  c6 {[%clk 0:02:57]} 9. a4 {[%clk 0:02:44]}  Ne4 {[%clk 0:02:57]} 10. Qc2 {[%clk 0:02:43]}  Nd6 {[%clk 0:02:57]} 11. Ne5 {[%clk 0:02:35]}  Na6 {[%clk 0:02:56]} 12. Nxc4 {[%clk 0:02:31]}  Nb4 {[%clk 0:02:56]} 13. Qb3 {[%clk 0:02:31]}  Nxc4 {[%clk 0:02:56]} 14. Qxc4 {[%clk 0:02:31]}  Qxd4 {[%clk 0:02:55]} 15. Qxd4 {[%clk 0:02:29]}  Nc2+ {[%clk 0:02:56]} 16. Kd1 {[%clk 0:02:26]}  Nxd4 {[%clk 0:02:57]} 17. Nd2 {[%clk 0:02:24]}  Ke7 {[%clk 0:02:40]} 18. e3 {[%clk 0:02:19]}  Nf5 {[%clk 0:02:40]} 19. Kc2 {[%clk 0:02:17]}  Nd6 {[%clk 0:02:33]} 20. Rhb1 {[%clk 0:02:13]}  Bd7 {[%clk 0:02:32]} 21. e4 {[%clk 0:02:01]}  e5 {[%clk 0:02:31]} 22. f4 {[%clk 0:02:00]}  f6 {[%clk 0:02:28]} 23. Nf3 {[%clk 0:01:58]}  Nf7 {[%clk 0:02:13]} 24. b4 {[%clk 0:01:54]}  axb4 {[%clk 0:02:11]} 25. Rxb4 {[%clk 0:01:55]}  b5 {[%clk 0:02:09]} 26. a5 {[%clk 0:01:30]}  Ra7 {[%clk 0:02:04]} 27. Nd2 {[%clk 0:01:29]}  c5 {[%clk 0:02:02]} 28. Rbb1 {[%clk 0:01:20]}  c4 {[%clk 0:02:01]} 29. Kc3 {[%clk 0:01:15]}  Rha8 {[%clk 0:01:44]} 30. Kb4 {[%clk 0:01:13]}  Nd8 {[%clk 0:01:43]} 31. fxe5 {[%clk 0:01:11]}  Nc6+ {[%clk 0:01:21]} 32. Kxb5 {[%clk 0:01:09]}  Nxe5+ {[%clk 0:01:21]} 33. Kb4 {[%clk 0:01:06]}  Be6 {[%clk 0:01:07]} 34. Bf1 {[%clk 0:01:02]}  Nc6+ {[%clk 0:01:06]} 35. Kc3 {[%clk 0:00:59]}  Nxa5 {[%clk 0:01:03]} 36. Rb6 {[%clk 0:00:54]}  Bf7 {[%clk 0:00:49]} 37. Rab1 {[%clk 0:00:44]}  Rd8 {[%clk 0:00:42]} 38. R1b5 {[%clk 0:00:30]}  Rad7 {[%clk 0:00:33]} 39. Rxa5 {[%clk 0:00:20]}  Rxd2 {[%clk 0:00:32]} 40. Ra7+ {[%clk 0:00:20]}  R2d7 {[%clk 0:00:28]} 41. Rbb7 {[%clk 0:00:20]}  Rxb7 {[%clk 0:00:19]} 42. Rxb7+ {[%clk 0:00:21]}  Kf8 {[%clk 0:00:18]} 43. Rc7 {[%clk 0:00:18]}  Rd1 {[%clk 0:00:17]} 44. Bxc4 {[%clk 0:00:17]}  Bxc4 {[%clk 0:00:14]} 45. Rxc4 {[%clk 0:00:18]}  Rh1 {[%clk 0:00:14]} 46. Kd4 {[%clk 0:00:17]}  Rxh2 {[%clk 0:00:14]} 47. Kd5 {[%clk 0:00:17]}  Kf7 {[%clk 0:00:13]} 48. Rd4 {[%clk 0:00:14]}  Rg2 {[%clk 0:00:12]} 49. Rd3 {[%clk 0:00:14]}  h5 {[%clk 0:00:12]} 50. e5 {[%clk 0:00:14]}  Re2 {[%clk 0:00:09]} 51. exf6 {[%clk 0:00:13]}  Kxf6 {[%clk 0:00:10]} 52. Ra3 {[%clk 0:00:12]}  g5 {[%clk 0:00:10]} 53. Rf3+ {[%clk 0:00:06]}  Kg6 {[%clk 0:00:09]} 54. Kd4 {[%clk 0:00:07]}  g4 {[%clk 0:00:09]} 55. Rb3 {[%clk 0:00:02]}  h4 {[%clk 0:00:07]} 56. Rb6+ {[%clk 0:00:01]}  Kf5 {[%clk 0:00:06]} 57. Rb5+ {[%clk 0:00:01]}  Kf6 {[%clk 0:00:06]} 58. Rb6+ {[%clk 0:00:01]}  Kg5 {[%clk 0:00:05]} 59. Rb5+ {[%clk 0:00:01]}  Kh6 {[%clk 0:00:05]} 60. gxh4 {[%clk 0:00:01]}  g3 {[%clk 0:00:04]} 61. Rg5 {[%clk 0:00:01]}  g2 {[%clk 0:00:03]} 62. Kd3 {[%clk 0:00:01]}  Ra2 {[%clk 0:00:02]} 63. Ke3 {[%clk 0:00:02]} 1-0


[Site "https://www.chess.com"]

[Event "Titled Tuesday Blitz April 26 Early 2022"]
[White "Hua, Lefong"]
[Black "Fiorito, Fabian"]
[WhiteFideId "2602253"]
[BlackFideId "100200"]
[WhiteElo "2604"]
[BlackElo "2395"]
[Result "1-0"]
[Round "08"]
[TimeControl "180+1"]
[Date "2022.04.26"]
[WhiteClock "0:00:18"]
[BlackClock "0:00:23"]

1. d4 {[%clk 0:03:00]}  d5 {[%clk 0:02:59]} 2. c4 {[%clk 0:03:01]}  e6 {[%clk 0:02:58]} 3. Nc3 {[%clk 0:03:01]}  Nf6 {[%clk 0:02:59]} 4. cxd5 {[%clk 0:03:02]}  exd5 {[%clk 0:02:59]} 5. Bg5 {[%clk 0:03:02]}  c6 {[%clk 0:02:59]} 6. e3 {[%clk 0:03:02]}  Be7 {[%clk 0:02:59]} 7. Bd3 {[%clk 0:03:03]}  Nbd7 {[%clk 0:02:59]} 8. Qc2 {[%clk 0:03:03]}  Nf8 {[%clk 0:02:59]} 9. h3 {[%clk 0:02:58]}  Ne6 {[%clk 0:02:58]} 10. Bh4 {[%clk 0:02:58]}  g6 {[%clk 0:02:55]} 11. Nf3 {[%clk 0:02:55]}  O-O {[%clk 0:02:55]} 12. O-O {[%clk 0:02:53]}  Ng7 {[%clk 0:02:55]} 13. g4 {[%clk 0:02:54]}  Re8 {[%clk 0:02:46]} 14. Ne5 {[%clk 0:02:53]}  Nd7 {[%clk 0:02:36]} 15. Bg3 {[%clk 0:02:45]}  Nxe5 {[%clk 0:02:25]} 16. dxe5 {[%clk 0:02:42]}  h5 {[%clk 0:02:22]} 17. Qe2 {[%clk 0:02:37]}  Bh4 {[%clk 0:02:07]} 18. Bh2 {[%clk 0:02:24]}  Be6 {[%clk 0:02:00]} 19. Kg2 {[%clk 0:02:16]}  hxg4 {[%clk 0:01:59]} 20. hxg4 {[%clk 0:02:16]}  Qd7 {[%clk 0:01:59]} 21. f3 {[%clk 0:02:16]}  a6 {[%clk 0:01:51]} 22. Rad1 {[%clk 0:02:14]}  c5 {[%clk 0:01:51]} 23. Bb1 {[%clk 0:02:07]}  Qc6 {[%clk 0:01:43]} 24. Bf4 {[%clk 0:01:56]}  Rad8 {[%clk 0:01:41]} 25. Rh1 {[%clk 0:01:52]}  g5 {[%clk 0:01:26]} 26. Qc2 {[%clk 0:01:44]}  d4 {[%clk 0:01:18]} 27. Qh7+ {[%clk 0:01:40]}  Kf8 {[%clk 0:01:18]} 28. Rxh4 {[%clk 0:01:36]}  gxf4 {[%clk 0:01:12]} 29. Ne4 {[%clk 0:01:28]}  dxe3 {[%clk 0:01:09]} 30. Re1 {[%clk 0:01:10]}  Qb5 {[%clk 0:00:56]} 31. Qh8+ {[%clk 0:00:56]}  Ke7 {[%clk 0:00:56]} 32. Qxg7 {[%clk 0:00:57]}  Qxb2+ {[%clk 0:00:56]} 33. Kg1 {[%clk 0:00:42]}  Rd2 {[%clk 0:00:48]} 34. Qf6+ {[%clk 0:00:39]}  Kd7 {[%clk 0:00:48]} 35. Qxf4 {[%clk 0:00:31]}  Rg2+ {[%clk 0:00:36]} 36. Kh1 {[%clk 0:00:31]}  Bxa2 {[%clk 0:00:24]} 37. Bxa2 {[%clk 0:00:23]}  Re2 {[%clk 0:00:24]} 38. Qxf7+ {[%clk 0:00:19]}  Kc6 {[%clk 0:00:24]} 39. Qd5+ {[%clk 0:00:18]}  Kb6 {[%clk 0:00:23]} 40. Rb1 {[%clk 0:00:17]}  Qxb1+ {[%clk 0:00:22]} 41. Bxb1 {[%clk 0:00:17]}  Re1+ {[%clk 0:00:22]} 42. Kg2 {[%clk 0:00:18]}  Rxb1 {[%clk 0:00:23]} 43. Qxc5# {[%clk 0:00:18]} 1-0


[Site "https://www.chess.com"]